bitfinex-derivatives/quotes_SOLF0:USTF0_20241226
["timestamp","ask_amount","ask_price","bid_price","bid_amount"]
[1735247421642,9.92508146,187.4,187.33,2.6717]
[1735247421845,9.92508146,187.4,187.32,3.36]
[1735247422446,9.92508146,187.4,187.3,3.2997]
[1735247422447,9.92508146,187.37,187.28,3.36]
[1735247422745,9.92508146,187.37,187.27,3.1685]
[1735247422939,9.92508146,187.34,187.27,6.5285]
[1735247423237,9.92508146,187.34,187.27,3.36]
[1735247423645,9.92508146,187.34,187.25,3.1685]
[1735247423835,9.92508146,187.34,187.25,6.5285]
[1735247424140,3.3544,187.39,187.25,6.5285]
[1735247424141,9.92508146,187.37,187.25,6.5285]
[1735247424437,9.92508146,187.34,187.25,6.5285]
[1735247424644,9.92508146,187.37,187.33,2.6717]
[1735247424842,9.92508146,187.37,187.25,6.5285]
[1735247425346,9.92508146,187.37,187.35,2.6715]
[1735247425646,9.92508146,187.37,187.3,3.36]
[1735247425849,9.92508146,187.34,187.25,6.5285]
[1735247426250,9.92508146,187.31,187.24,3.2997]
[1735247426747,9.92508146,187.31,187.28,2.6725]
[1735247427454,9.92508146,187.34,187.24,3.2997]
[1735247427848,12.59688146,187.34,187.28,2.6725]
[1735247428059,9.92508146,187.34,187.28,2.6725]
[1735247428255,9.92508146,187.34,187.24,3.2997]
[1735247428454,9.92508146,187.34,187.24,6.6597]
[1735247428752,9.92508146,187.34,187.23,3.2339]
[1735247428753,9.92508146,187.31,187.1,30.5111322]
[1735247428961,9.92508146,187.31,187.17,4.34224273]
[1735247429151,9.92508146,187.31,187.18,0.98224273]
[1735247429454,9.92508146,187.31,187.29,2.6724]
[1735247430450,9.92508146,187.34,187.26,3.36]
[1735247430645,3.36,187.38,187.26,3.36]
[1735247430646,9.92508146,187.37,187.26,3.36]
[1735247430852,3.36,187.38,187.28,2.6725]
[1735247430853,2.6719,187.33,187.28,2.6725]
[1735247431157,9.92508146,187.34,187.26,3.36]
[1735247431454,3.3544,187.39,187.26,3.36]
[1735247431455,9.92508146,187.37,187.26,3.36]
[1735247431657,9.92508146,187.38,187.26,3.222]
[1735247431853,9.92508146,187.38,187.27,3.36]
[1735247432054,9.92508146,187.35,187.29,2.6723]
[1735247432254,9.92508146,187.32,187.25,6.7094]
[1735247432557,12.59718146,187.32,187.27,2.6727]
[1735247432757,9.92508146,187.32,187.25,6.7094]
[1735247432953,9.92508146,187.32,187.3,2.6722]
[1735247433154,9.92508146,187.35,187.3,2.6722]
[1735247433355,9.92508146,187.35,187.25,6.7094]
[1735247433552,9.92508146,187.35,187.2,3.222]
[1735247433553,2.6723,187.3,187.2,3.222]
[1735247433753,9.92508146,187.32,187.21,3.36]
[1735247433949,9.92508146,187.32,187.22,3.36]
[1735247434858,9.92508146,187.32,187.28,2.6726]
[1735247435361,9.92508146,187.32,187.3,2.6722]
[1735247435668,9.92508146,187.32,187.25,3.36]
[1735247436160,9.92508146,187.32,187.22,3.36]
[1735247436564,9.92508146,187.32,187.3,2.6722]
[1735247436861,9.92508146,187.32,187.22,3.36]
[1735247437061,9.92508146,187.32,187.29,2.6723]
[1735247437664,9.92508146,187.32,187.22,3.36]
[1735247437858,9.92508146,187.32,187.17,3.3691]
[1735247438157,9.92508146,187.32,187.19,9.92508146]
[1735247438352,9.92508146,187.32,187.2,0.98237993]
[1735247438757,9.92508146,187.32,187.23,2.6732]
[1735247438957,9.92508146,187.32,187.24,3.36]
[1735247439162,9.92508146,187.32,187.25,3.36]
[1735247439362,12.59668146,187.35,187.3,2.6722]
[1735247439663,9.92508146,187.32,187.25,3.36]
[1735247439860,9.92508146,187.32,187.17,3.3691]
[1735247439861,9.92508146,187.29,187.24,2.673]
[1735247440362,9.92508146,187.29,187.22,3.36]
[1735247440758,9.92508146,187.32,187.22,3.36]
[1735247441357,2.6722,187.31,187.22,3.36]
[1735247441956,2.6723,187.3,187.25,2.6729]
[1735247442265,9.92508146,187.32,187.22,3.36]
[1735247443860,9.92508146,187.35,187.22,3.36]
[1735247444368,2.6718,187.34,187.3,2.6722]
[1735247444561,9.92508146,187.35,187.22,3.36]
[1735247445460,9.92508146,187.35,187.22,13.28508146]
[1735247445762,12.59668146,187.35,187.25,2.6729]
[1735247445966,12.59668146,187.35,187.22,13.28508146]
[1735247447170,2.6718,187.34,187.29,2.6723]
[1735247447964,2.6718,187.34,187.3,2.6722]
[1735247448361,2.6714,187.36,187.26,3.54]
[1735247448574,9.92508146,187.38,187.26,3.54]
[1735247448773,9.92508146,187.32,187.26,3.54]
[1735247449169,9.92508146,187.32,187.25,7.35562002]
[1735247449469,9.92508146,187.32,187.24,22.06686008]
[1735247449470,9.92508146,187.32,187.23,46.03623483]
[1735247450163,9.92508146,187.32,187.29,2.6724]
[1735247451160,9.92508146,187.35,187.26,3.54]
[1735247451368,9.92508146,187.38,187.26,3.54]
[1735247451771,2.6716,187.35,187.29,2.6723]
[1735247452070,9.92508146,187.38,187.26,3.54]
[1735247452268,9.92508146,187.35,187.26,3.54]
[1735247452571,9.92508146,187.32,187.26,3.54]
[1735247452776,9.92508146,187.32,187.3,11.52797147]
[1735247452972,2.6721,187.31,187.3,11.52797147]
[1735247453279,9.92508146,187.32,187.3,11.52797147]
[1735247453876,9.92508146,187.32,187.26,29.4224801]
[1735247454776,9.92508146,187.32,187.28,7.35562002]
[1735247455370,12.59718146,187.32,187.28,10.02812002]
[1735247455569,9.92508146,187.32,187.28,7.35562002]
[1735247455974,9.92508146,187.32,187.31,7.35562002]
[1735247456276,9.92508146,187.32,187.3,22.06686008]
[1735247456873,9.92508146,187.35,187.3,22.06686008]
[1735247457275,9.92508146,187.35,187.32,2.6719]
[1735247457876,9.92508146,187.35,187.29,22.06686008]
[1735247458073,9.92508146,187.35,187.33,2.6718]
[1735247458678,9.92508146,187.35,187.33,6.83581602]
[1735247458875,9.92508146,187.35,187.33,4.16401602]
[1735247460385,9.92508146,187.35,187.32,2.672]
[1735247460584,12.59668146,187.35,187.32,2.672]
[1735247460879,9.92508146,187.35,187.29,22.06686008]
[1735247461081,2.6717,187.34,187.29,22.06686008]
[1735247461581,2.6717,187.34,187.3,2.6722]
[1735247461783,9.92508146,187.35,187.28,22.06686008]
[1735247462483,9.92508146,187.38,187.28,22.06686008]
[1735247462784,9.92508146,187.38,187.28,28.38906008]
[1735247462981,9.92508146,187.38,187.35,2.6715]
[1735247463485,9.92508146,187.38,187.29,42.34146964]
[1735247463679,9.92508146,187.38,187.35,2.6715]
[1735247463984,9.92508146,187.38,187.29,22.06686008]
[1735247464179,2.6717,187.34,187.31,2.6721]
[1735247464484,9.92508146,187.35,187.29,22.06686008]
[1735247464784,9.92508146,187.35,187.29,24.73916008]
[1735247464985,9.92508146,187.35,187.27,25.60686008]
[1735247466081,9.92508146,187.35,187.27,3.54]
[1735247466286,2.672,187.33,187.3,2.6722]
[1735247467180,12.59668146,187.35,187.27,3.54]
[1735247467374,9.92508146,187.35,187.27,3.54]
[1735247468382,12.59668146,187.35,187.32,2.6719]
[1735247468786,9.92508146,187.35,187.27,3.54]
[1735247469183,9.92508146,187.4,187.28,3.0958]
[1735247469387,9.92508146,187.43,187.39,2.671]
[1735247471085,12.59518146,187.46,187.43,2.6704]
[1735247471488,13.19628146,187.49,187.4,3.54]
[1735247471689,2.6697,187.48,187.44,2.6702]
[1735247471888,9.92508146,187.49,187.4,3.54]
[1735247472393,2.6697,187.48,187.4,3.54]
[1735247473895,2.6697,187.48,187.43,2.6703]
[1735247474390,9.92508146,187.49,187.43,2.6703]
[1735247474591,27.50720069,187.58,187.45,2.6701]
[1735247474799,9.92508146,187.5,187.45,2.6701]
[1735247475091,9.92508146,187.47,187.36,9.3471]
[1735247475292,9.92508146,187.47,187.37,3.54]
[1735247476288,2.6703,187.44,187.39,2.671]
[1735247476587,3.1324,187.49,187.37,3.54]
[1735247476588,9.92508146,187.43,187.37,3.54]
[1735247477588,9.92508146,187.43,187.36,6.6738]
[1735247477984,9.92508146,187.4,187.32,6.1831]
[1735247478191,9.92508146,187.4,187.34,3.58]
[1735247478387,9.92508146,187.43,187.38,2.6711]
[1735247478786,2.6707,187.41,187.38,2.6711]
[1735247478988,2.6707,187.41,187.36,2.6714]
[1735247479188,2.6707,187.41,187.34,3.58]
[1735247479690,2.6707,187.41,187.37,2.6712]
[1735247480195,9.92508146,187.43,187.34,3.58]
[1735247480390,9.92508146,187.43,187.4,2.6707]
[1735247480596,9.92508146,187.43,187.34,3.58]
[1735247481293,12.59548146,187.43,187.34,3.58]
[1735247481598,9.92508146,187.43,187.35,6.2515]
[1735247481800,9.92508146,187.4,187.35,2.6715]
[1735247482395,2.671,187.39,187.35,2.6715]
[1735247482597,9.92508146,187.4,187.35,2.6715]
[1735247483093,12.59598146,187.4,187.35,2.6714]
[1735247483294,12.59598146,187.4,187.34,3.58]
[1735247484589,12.59598146,187.4,187.36,2.6714]
[1735247485495,2.6711,187.39,187.35,2.6715]
[1735247486995,9.92508146,187.4,187.33,3.58]
[1735247487192,9.92508146,187.43,187.33,3.58]
[1735247487591,9.92508146,187.46,187.33,3.58]
[1735247488294,9.92508146,187.46,187.36,2.6713]
[1735247488495,9.92508146,187.46,187.33,3.58]
[1735247489091,12.59508146,187.46,187.36,2.6713]
[1735247489395,9.92508146,187.46,187.33,3.58]
[1735247489596,2.6704,187.43,187.39,2.6709]
[1735247490791,2.6707,187.42,187.37,2.6711]
[1735247490996,2.6707,187.42,187.33,3.58]
[1735247491387,2.6707,187.42,187.35,2.6715]
[1735247491694,2.6707,187.42,187.33,3.58]
[1735247491891,2.6707,187.41,187.37,2.6711]
[1735247492093,9.92508146,187.43,187.33,3.58]
[1735247492988,9.92508146,187.4,187.33,3.58]
[1735247494498,2.6711,187.38,187.34,2.6717]
[1735247499000,9.92508146,187.4,187.33,3.58]
[1735247499200,2.6714,187.37,187.33,3.58]
[1735247499401,9.92508146,187.4,187.33,3.58]
[1735247499894,2.6712,187.38,187.34,2.6716]
[1735247500696,2.6717,187.35,187.31,2.672]
[1735247501194,12.59638146,187.37,187.33,2.6717]
[1735247502297,9.92508146,187.37,187.27,6.5082]
[1735247502498,2.6716,187.35,187.31,2.672]
[1735247504600,9.92508146,187.37,187.31,2.672]
[1735247505689,2.6716,187.35,187.31,2.672]
[1735247508195,6.37630157,187.33,187.31,2.672]
[1735247509400,6.37630157,187.33,187.3,2.6723]
[1735247510400,6.37630157,187.31,187.26,3.48]
[1735247510603,6.37630157,187.31,187.28,2.6725]
[1735247511406,9.04840157,187.31,187.28,2.6725]
[1735247512595,9.04840157,187.31,187.27,2.6727]
[1735247513001,2.6721,187.31,187.27,2.6727]
[1735247513205,6.3834,187.39,187.24,9.85630157]
[1735247513400,6.37630157,187.33,187.31,2.6721]
[1735247513605,6.37630157,187.33,187.24,3.48]
[1735247513806,9.04820157,187.33,187.3,2.6722]
[1735247514008,6.37630157,187.33,187.3,2.6722]
[1735247514206,6.37630157,187.33,187.25,6.37630157]
[1735247514401,6.3834,187.39,187.29,6.37630157]
[1735247514605,6.37630157,187.38,187.3,3.48]
[1735247514906,6.37630157,187.36,187.34,2.6716]
[1735247515104,6.3815,187.43,187.31,6.37630157]
[1735247515304,6.37630157,187.4,187.33,6.37630157]
[1735247515704,6.37630157,187.4,187.31,3.2724]
[1735247515908,3.3029,187.43,187.32,6.37630157]
[1735247516111,6.37630157,187.4,187.32,6.37630157]
[1735247516311,15.92970467,187.43,187.34,2.6716]
[1735247516505,15.92970467,187.43,187.31,3.2724]
[1735247517507,13.25920467,187.43,187.31,3.2724]
[1735247517702,9.95630467,187.4,187.3,3.48]
[1735247517910,9.95630467,187.37,187.3,6.1522]
[1735247518105,2.6714,187.36,187.3,3.48]
[1735247518408,2.6714,187.36,187.27,32.96751905]
[1735247518599,2.6714,187.36,187.27,3.48]
[1735247518801,2.6714,187.36,187.31,2.672]
[1735247519910,2.6714,187.36,187.27,3.48]
[1735247520212,2.6714,187.36,187.32,2.6719]
[1735247522510,9.95630467,187.37,187.27,3.48]
[1735247522711,9.95630467,187.34,187.25,3.3466]
[1735247522904,9.95630467,187.34,187.26,3.48]
[1735247524112,3.2523,187.36,187.26,3.48]
[1735247524314,9.95630467,187.34,187.26,3.48]
[1735247525319,2.6721,187.32,187.28,2.6725]
[1735247525608,9.95630467,187.34,187.26,3.48]
[1735247525911,2.6719,187.33,187.29,2.6723]
[1735247526114,2.6719,187.33,187.26,3.48]
[1735247526509,2.6719,187.33,187.29,2.6723]
[1735247526710,2.6721,187.32,187.26,3.48]
[1735247526915,9.95630467,187.34,187.26,3.48]
[1735247527807,9.95630467,187.34,187.25,3.3466]
[1735247528211,2.6722,187.31,187.25,3.3466]
[1735247528809,9.95630467,187.34,187.25,3.3466]
[1735247529015,2.6723,187.3,187.24,6.8008]
[1735247529716,2.6723,187.3,187.26,2.6727]
[1735247530515,2.6723,187.3,187.27,2.6727]
[1735247530915,2.6723,187.3,187.21,3.48]
[1735247531115,2.6726,187.28,187.25,2.6729]
[1735247531720,2.6725,187.29,187.25,2.6729]
[1735247532218,2.6724,187.29,187.24,2.673]
[1735247532518,2.6724,187.29,187.22,3.48]
[1735247532919,9.95630467,187.31,187.24,2.6731]
[1735247533119,2.6727,187.28,187.24,2.6731]
[1735247533319,2.6727,187.28,187.22,3.48]
[1735247534218,9.95630467,187.31,187.22,3.48]
[1735247534822,9.95630467,187.36,187.22,3.48]
[1735247535018,9.95630467,187.36,187.23,13.18840467]
[1735247535415,9.95630467,187.36,187.24,3.1946]
[1735247535816,9.95630467,187.36,187.33,2.6718]
[1735247536021,9.95630467,187.39,187.26,9.95630467]
[1735247536222,9.95630467,187.42,187.29,9.95630467]
[1735247536731,9.95630467,187.39,187.25,3.1916]
[1735247537018,12.62780467,187.36,187.3,2.6722]
[1735247537222,9.95630467,187.33,187.26,3.48]
[1735247537624,9.95630467,187.33,187.28,2.6725]
[1735247539222,9.95630467,187.33,187.3,2.6721]
[1735247540517,9.95630467,187.36,187.33,2.6718]
[1735247541318,9.95630467,187.39,187.31,3.42]
[1735247542023,9.95630467,187.39,187.37,2.6712]
[1735247542223,9.95630467,187.42,187.32,6.3093]
[1735247542419,9.95630467,187.42,187.32,9.6959]
[1735247543916,9.95630467,187.42,187.38,2.671]
[1735247544825,9.95630467,187.42,187.36,3.42]
[1735247545126,9.95630467,187.39,187.36,3.42]
[1735247545527,9.95630467,187.39,187.32,9.6959]
[1735247545730,2.6712,187.38,187.33,2.6717]
[1735247545929,9.95630467,187.39,187.32,9.6959]
[1735247546227,9.95630467,187.39,187.31,3.42]
[1735247546228,9.95630467,187.36,187.31,3.42]
[1735247546827,9.95630467,187.36,187.32,2.6719]
[1735247547027,9.95630467,187.36,187.31,3.42]
[1735247548227,9.95630467,187.33,187.31,3.42]
[1735247548526,9.95630467,187.33,187.3,2.6722]
[1735247549829,9.95630467,187.39,187.28,3.42]
[1735247550431,2.6712,187.38,187.33,2.6717]
[1735247551027,2.6712,187.38,187.28,3.42]
[1735247551028,2.6712,187.38,187.34,2.6717]
[1735247551431,12.62730467,187.39,187.28,3.42]
[1735247552335,12.62730467,187.39,187.34,2.6716]
[1735247553537,12.62730467,187.39,187.28,3.42]
[1735247554235,12.62730467,187.39,187.34,2.6717]
[1735247554938,9.95630467,187.39,187.34,2.6717]
[1735247555237,2.6711,187.38,187.34,2.6717]
[1735247555436,9.95630467,187.39,187.31,2.6721]
[1735247555637,12.62730467,187.39,187.28,3.42]
[1735247556137,12.62730467,187.39,187.34,2.6716]
[1735247556336,12.62730467,187.39,187.28,3.42]
[1735247556531,9.95630467,187.39,187.28,3.42]
[1735247556727,2.6712,187.38,187.28,3.42]
[1735247558534,2.6712,187.38,187.33,2.6717]
[1735247558740,2.6712,187.38,187.28,3.42]
[1735247559240,9.95630467,187.42,187.28,3.42]
[1735247559943,12.62700467,187.42,187.37,2.6712]
[1735247560339,12.62700467,187.42,187.38,2.6711]
[1735247561038,9.95630467,187.42,187.38,2.6711]
[1735247561334,9.95630467,187.39,187.33,3.42]
[1735247561544,9.95630467,187.39,187.32,3.42]
[1735247561731,2.6713,187.37,187.33,2.6717]
[1735247562230,9.95630467,187.39,187.32,3.42]
[1735247562635,2.6711,187.38,187.32,3.42]
[1735247562842,6.6173,187.45,187.32,3.42]
[1735247562843,9.95630467,187.42,187.32,3.42]
[1735247563032,9.95630467,187.42,187.33,3.3655]
[1735247563336,12.62690467,187.42,187.37,2.6711]
[1735247563538,9.95630467,187.39,187.33,3.3655]
[1735247563931,12.62730467,187.39,187.32,3.42]
[1735247564538,9.95630467,187.39,187.36,2.6714]
[1735247565641,9.95630467,187.39,187.37,2.6712]
[1735247565839,2.6707,187.41,187.37,2.6712]
[1735247566532,2.6707,187.41,187.32,3.42]
[1735247566533,3.2633,187.48,187.32,3.42]
[1735247566738,12.62660467,187.44,187.4,2.6707]
[1735247567140,9.95630467,187.44,187.34,3.0608]
[1735247567441,9.95630467,187.41,187.34,3.42]
[1735247567838,9.95630467,187.44,187.34,3.42]
[1735247568146,9.95630467,187.44,187.35,3.2653]
[1735247568743,9.95630467,187.41,187.35,3.2653]
[1735247570444,12.62710467,187.41,187.37,2.6712]
[1735247570850,12.62710467,187.41,187.35,3.2653]
[1735247571645,9.95630467,187.41,187.35,3.2653]
[1735247571947,9.95630467,187.41,187.34,3.42]
[1735247572147,6.3737949,187.37,187.35,2.6715]
[1735247573551,9.0450949,187.37,187.33,2.6718]
[1735247573849,6.3737949,187.35,187.3,9.8016]
[1735247574849,6.3737949,187.35,187.31,2.6721]
[1735247575051,6.3737949,187.35,187.3,9.8016]
[1735247575954,6.3737949,187.35,187.3,3.34]
[1735247576149,6.3737949,187.36,187.3,3.34]
[1735247578449,6.3737949,187.36,187.34,2.6716]
[1735247578655,6.3737949,187.36,187.3,3.34]
[1735247579549,6.3737949,187.36,187.35,2.6716]
[1735247579750,6.3737949,187.36,187.28,6.5282]
[1735247579950,6.3737949,187.31,187.3,2.6723]
[1735247580357,6.3737949,187.33,187.28,3.34]
[1735247580654,6.3737949,187.33,187.32,2.672]
[1735247581948,6.3737949,187.33,187.31,2.6721]
[1735247582155,2.6716,187.35,187.31,2.6721]
[1735247582750,9.9631306,187.36,187.31,2.6721]
[1735247582952,9.9631306,187.32,187.25,29.48751905]
[1735247583355,2.6723,187.3,187.25,32.16041905]
[1735247583559,9.9631306,187.32,187.25,32.16041905]
[1735247583762,9.9631306,187.32,187.25,2.6729]
[1735247583953,2.6725,187.29,187.24,14.14512082]
[1735247585059,2.6725,187.29,187.24,2.6731]
[1735247585266,2.6726,187.28,187.24,2.6731]
[1735247585758,2.6726,187.28,187.23,2.6732]
[1735247586357,2.6726,187.28,187.24,2.6731]
[1735247587860,2.6726,187.28,187.23,2.6732]
[1735247588262,2.6722,187.31,187.21,3.34]
[1735247588658,9.9631306,187.32,187.21,3.34]
[1735247588860,16.0191306,187.35,187.23,9.9631306]
[1735247589065,16.0191306,187.35,187.24,3.1901]
[1735247589661,2.6717,187.34,187.27,2.6727]
[1735247589860,2.6717,187.34,187.27,3.34]
[1735247590359,2.6717,187.34,187.3,2.6723]
[1735247591469,13.3474306,187.35,187.29,2.6724]
[1735247591864,2.6718,187.34,187.29,2.6724]
[1735247592064,6.5083,187.4,187.27,3.34]
[1735247592260,9.9631306,187.4,187.27,13.3031306]
[1735247592463,9.9631306,187.4,187.28,6.263]
[1735247592670,3.1107,187.42,187.28,6.263]
[1735247592868,3.1107,187.42,187.3,9.9631306]
[1735247593668,3.1107,187.42,187.38,2.6711]
[1735247593871,9.9631306,187.43,187.35,3.34]
[1735247594174,9.9631306,187.46,187.42,2.6706]
[1735247594473,9.9631306,187.46,187.39,3.34]
[1735247596171,9.9631306,187.43,187.35,3.34]
[1735247596372,3.34,187.47,187.35,3.34]
[1735247596373,9.9631306,187.4,187.35,3.34]
[1735247597276,9.9631306,187.37,187.31,9.7142]
[1735247597477,9.9631306,187.37,187.31,6.4294]
[1735247598475,12.6344306,187.37,187.32,2.672]
[1735247600277,9.9631306,187.37,187.31,6.4294]
[1735247600574,9.9631306,187.37,187.33,2.6718]
[1735247601669,9.9631306,187.37,187.31,6.4294]
[1735247601877,2.6714,187.36,187.31,5.9921]
[1735247602072,9.9631306,187.37,187.31,3.32]
[1735247602268,9.9631306,187.37,187.25,3.3404]
[1735247602474,9.9631306,187.34,187.26,3.32]
[1735247602670,9.9631306,187.34,187.25,3.3404]
[1735247602872,9.9631306,187.31,187.25,5.9929]
[1735247603071,9.9631306,187.31,187.25,3.32]
[1735247603477,2.6723,187.3,187.25,5.993]
[1735247604579,2.6723,187.3,187.25,2.673]
[1735247605273,9.9631306,187.31,187.25,2.673]
[1735247605274,2.6725,187.29,187.25,2.673]
[1735247605474,2.6725,187.29,187.24,2.6731]
[1735247606274,2.6716,187.35,187.28,2.6725]
[1735247606471,9.9631306,187.36,187.23,13.2831306]
[1735247606675,9.9631306,187.36,187.24,3.0788]
[1735247607075,2.6717,187.35,187.24,3.0788]
[1735247608277,9.9631306,187.36,187.29,2.6723]
[1735247608483,9.9631306,187.36,187.26,3.32]
[1735247608684,9.9631306,187.33,187.24,3.0788]
[1735247608889,2.6721,187.31,187.26,2.6728]
[1735247609774,9.9631306,187.33,187.24,3.32]
[1735247610078,9.9631306,187.33,187.23,3.32]
[1735247610882,2.6725,187.29,187.24,2.673]
[1735247611383,2.6725,187.29,187.22,3.32]
[1735247611584,2.6725,187.29,187.24,2.6731]
[1735247611884,2.6725,187.29,187.22,3.32]
[1735247612481,2.6725,187.29,187.24,2.6731]
[1735247612883,9.9631306,187.3,187.22,3.32]
[1735247613085,9.9631306,187.3,187.23,2.6733]
[1735247613086,2.6726,187.28,187.23,2.6733]
[1735247613784,2.6726,187.28,187.22,3.32]
[1735247613979,12.6355306,187.3,187.24,2.6731]
[1735247614288,9.9631306,187.3,187.24,2.6731]
[1735247614489,9.9631306,187.3,187.22,2.6733]
[1735247615288,9.9631306,187.27,187.19,2.6737]
[1735247615494,9.9631306,187.27,187.18,3.32]
[1735247615982,2.6732,187.24,187.19,2.6738]
[1735247616183,9.9631306,187.27,187.14,6.5448]
[1735247617582,2.6732,187.24,187.2,2.6737]
[1735247618493,2.6732,187.24,187.14,6.5448]
[1735247618794,2.6733,187.23,187.14,6.5448]
[1735247619091,2.6733,187.23,187.19,2.6738]
[1735247619591,2.673,187.25,187.14,6.5448]
[1735247619791,9.9631306,187.3,187.16,9.9631306]
[1735247620586,9.9631306,187.3,187.23,2.6733]
[1735247620995,9.9631306,187.3,187.2,3.32]
[1735247621396,2.6727,187.27,187.22,2.6733]
[1735247621699,9.9631306,187.3,187.22,2.6733]
[1735247622095,2.6728,187.27,187.22,2.6733]
[1735247624106,2.6728,187.27,187.23,2.6732]
[1735247625302,2.6726,187.28,187.25,2.673]
[1735247625497,9.9631306,187.3,187.16,9.9631306]
[1735247625697,9.9631306,187.3,187.17,3.32]
[1735247625898,2.6724,187.29,187.17,3.32]
[1735247626403,2.6724,187.29,187.25,2.673]
[1735247627096,9.9631306,187.27,187.22,3.32]
[1735247628201,9.9631306,187.3,187.22,3.32]
[1735247628602,2.6725,187.29,187.24,2.673]
[1735247628800,9.9631306,187.3,187.24,2.673]
[1735247629099,9.9631306,187.3,187.22,3.32]
[1735247630604,12.6354306,187.3,187.26,2.6727]
[1735247631303,2.6725,187.29,187.22,3.32]
[1735247631605,9.9631306,187.3,187.2,3.32]
[1735247631899,3.0711,187.32,187.2,3.32]
[1735247631900,2.6729,187.26,187.21,2.6735]
[1735247632103,2.6729,187.26,187.2,3.32]
[1735247633007,9.9631306,187.27,187.2,3.32]
[1735247634206,9.9631306,187.27,187.14,3.2248]
[1735247634406,9.9631306,187.27,187.15,3.32]
[1735247634907,9.9631306,187.27,187.19,2.6737]
[1735247634908,2.6733,187.24,187.19,2.6737]
[1735247638510,2.6733,187.24,187.2,2.6736]
[1735247640606,2.6732,187.24,187.19,2.6738]
[1735247640811,12.6363306,187.24,187.19,2.6738]
[1735247642116,6.38514674,187.21,187.19,2.6738]
[1735247643714,6.4291,187.31,187.16,3.32]
[1735247643910,6.38514674,187.26,187.19,6.38514674]
[1735247644118,6.38514674,187.28,187.21,6.38514674]
[1735247644416,6.38514674,187.28,187.22,3.32]
[1735247644618,6.38514674,187.28,187.22,6.4315]
[1735247644811,6.38514674,187.26,187.22,6.4315]
[1735247645007,6.38514674,187.26,187.22,3.32]
[1735247645209,6.38514674,187.24,187.22,3.32]
[1735247645413,6.38514674,187.24,187.2,2.6737]
[1735247646912,6.38514674,187.22,187.19,2.6738]
[1735247647115,6.38514674,187.22,187.16,3.1115]
[1735247647312,6.38514674,187.2,187.16,3.1115]
[1735247647516,6.38514674,187.2,187.14,3.32]
[1735247647716,6.5203,187.29,187.14,9.70514674]
[1735247648013,6.38514674,187.21,187.2,2.6737]
[1735247648220,6.38514674,187.21,187.14,9.70514674]
[1735247649115,6.38514674,187.21,187.16,2.6743]
[1735247649413,6.38514674,187.21,187.14,3.32]
[1735247649713,6.38514674,187.19,187.14,3.32]
[1735247650419,6.38514674,187.19,187.17,2.674]
[1735247651715,6.38514674,187.19,187.1,1.0886521]
[1735247651915,6.38514674,187.12,187.1,1.0886521]
[1735247653411,2.675,187.11,187.1,1.0886521]
[1735247654112,3.34,187.17,187.1,1.0886521]
[1735247654312,6.4539,187.18,187.1,1.0886521]
[1735247654511,6.38514674,187.11,187.1,1.0886521]
[1735247654918,9.7939,187.18,187.1,1.0886521]
[1735247655117,6.38514674,187.11,187.1,1.0886521]
[1735247656122,9.98947031,187.12,187.1,1.0886521]
[1735247656523,2.675,187.11,187.1,1.0886521]
[1735247658218,9.98947031,187.11,186.94,29.48751905]
[1735247658415,9.98947031,186.95,186.91,87.04954033]
[1735247658615,9.98947031,186.92,186.9,303.79124478]
[1735247658818,9.98947031,186.95,186.9,303.79124478]
[1735247659123,9.98947031,186.98,186.9,303.79124478]
[1735247659328,9.98947031,186.92,186.9,303.79124478]
[1735247659824,9.98947031,186.95,186.9,303.79124478]
[1735247660223,9.98947031,186.95,186.89,3.56]
[1735247660822,9.98947031,186.95,186.86,3.3434]
[1735247661021,9.98947031,186.95,186.89,3.56]
[1735247661926,9.98947031,186.92,186.87,3.56]
[1735247662728,9.98947031,186.92,186.86,3.3434]
[1735247662927,9.98947031,186.92,186.87,3.56]